[Event "*** Titled Tuesday 3|2 Blitz"]
[Site "Chess.com"]
[Date "2016.07.05"]
[Round "2"]
[White "MFBerna"]
[Black "asms9699"]
[Result "1-0"]
[WhiteElo "2265"]
[BlackElo "2338"]
[TimeControl "180+2"]
[EndTime "17:18:58 PDT"]
[Termination "MFBerna won by resignation"]

1. e4 {[%clk 0:03:01.9]} 1... e6 {[%clk 0:03:00.2]} 2. d4 {[%clk 0:03:02.3]}
2... d5 {[%clk 0:03:01.2]} 3. Nd2 {[%clk 0:03:02.6]} 3... c5 {[%clk 0:03:01.3]}
4. exd5 {[%clk 0:03:03.3]} 4... Qxd5 {[%clk 0:03:03.2]} 5. Ngf3 {[%clk
0:03:04.5]} 5... cxd4 {[%clk 0:03:04.4]} 6. Bc4 {[%clk 0:03:06.1]} 6... Qd6
{[%clk 0:03:06]} 7. Nb3 {[%clk 0:03:06.9]} 7... Nf6 {[%clk 0:03:06.9]} 8. Nbxd4
{[%clk 0:03:07.4]} 8... Qb4+ {[%clk 0:03:07]} 9. Nd2 {[%clk 0:03:07.9]} 9... Ne4
{[%clk 0:02:59.6]} 10. c3 {[%clk 0:03:04.3]} 10... Qc5 {[%clk 0:02:56.8]} 11.
Bb5+ {[%clk 0:02:57.2]} 11... Bd7 {[%clk 0:02:56]} 12. Nxe4 {[%clk 0:02:56.7]}
12... Qe5 {[%clk 0:02:56]} 13. Qe2 {[%clk 0:02:52.4]} 13... Nc6 {[%clk
0:02:55.2]} 14. Nxc6 {[%clk 0:02:46.3]} 14... bxc6 {[%clk 0:02:55.7]} 15. Bd3
{[%clk 0:02:45.9]} 15... Be7 {[%clk 0:02:56.9]} 16. O-O {[%clk 0:02:46.1]} 16...
O-O {[%clk 0:02:58]} 17. Be3 {[%clk 0:02:43.5]} 17... Qa5 {[%clk 0:02:56.3]} 18.
Qf3 {[%clk 0:02:28.4]} 18... e5 {[%clk 0:02:55.7]} 19. Ng3 {[%clk 0:02:15.9]}
19... g6 {[%clk 0:02:52.9]} 20. Bh6 {[%clk 0:02:16.4]} 20... Rfd8 {[%clk
0:02:51.8]} 21. Bc4 {[%clk 0:02:13.5]} 21... Be8 {[%clk 0:02:52.6]} 22. Nf5
{[%clk 0:02:06.1]} 22... Bf6 {[%clk 0:02:43.9]} 23. Ne3 {[%clk 0:01:52.6]} 23...
Be7 {[%clk 0:02:40.2]} 24. Rad1 {[%clk 0:01:44.3]} 24... Qc5 {[%clk 0:02:30.7]}
25. Bb3 {[%clk 0:01:30.7]} 25... a5 {[%clk 0:02:29.8]} 26. Ng4 {[%clk
0:01:17.8]} 26... Rd6 {[%clk 0:02:22.3]} 27. Be3 {[%clk 0:01:08.8]} 27... Qb5
{[%clk 0:02:17.2]} 28. Rxd6 {[%clk 0:01:07.1]} 28... Bxd6 {[%clk 0:02:19.1]} 29.
Nf6+ {[%clk 0:01:06.4]} 29... Kh8 {[%clk 0:02:18.9]} 30. Nxe8 {[%clk 0:01:07.4]}
30... Rxe8 {[%clk 0:02:20.1]} 31. Qf6+ {[%clk 0:01:08.2]} 1-0

[Event "*** Titled Tuesday 3|2 Blitz"]
[Site "Chess.com"]
[Date "2016.07.05"]
[Round "2"]
[White "Sanan_Sjugirov"]
[Black "Semetey"]
[Result "1-0"]
[WhiteElo "2663"]
[BlackElo "2445"]
[TimeControl "180+2"]
[EndTime "17:19:32 PDT"]
[Termination "Sanan_Sjugirov won by resignation"]

1. d4 {[%clk 0:03:01.9]} 1... g6 {[%clk 0:03:01.1]} 2. Nf3 {[%clk 0:03:02.8]}
2... Bg7 {[%clk 0:03:02.6]} 3. Bg5 {[%clk 0:03:03.6]} 3... c5 {[%clk 0:03:02.9]}
4. e3 {[%clk 0:03:01.4]} 4... Nf6 {[%clk 0:03:01.6]} 5. Nbd2 {[%clk 0:03:00.9]}
5... d6 {[%clk 0:02:58.4]} 6. c3 {[%clk 0:03:00.9]} 6... O-O {[%clk 0:02:58.8]}
7. Bc4 {[%clk 0:02:57.5]} 7... b6 {[%clk 0:02:47.5]} 8. Bxf6 {[%clk 0:02:56.7]}
8... exf6 {[%clk 0:02:46.5]} 9. Bd5 {[%clk 0:02:57.7]} 9... Be6 {[%clk
0:02:36.9]} 10. Bxa8 {[%clk 0:02:58.4]} 10... d5 {[%clk 0:02:38.3]} 11. c4
{[%clk 0:02:51]} 11... dxc4 {[%clk 0:02:33.6]} 12. O-O {[%clk 0:02:50.6]} 12...
f5 {[%clk 0:02:34.7]} 13. Rc1 {[%clk 0:02:48.5]} 13... b5 {[%clk 0:02:34.5]} 14.
b3 {[%clk 0:02:43.8]} 14... cxd4 {[%clk 0:02:11.9]} 15. Nxd4 {[%clk 0:02:41.6]}
15... Bxd4 {[%clk 0:02:10]} 16. exd4 {[%clk 0:02:43.5]} 16... Qxd4 {[%clk
0:02:08.6]} 17. bxc4 {[%clk 0:02:42.9]} 17... bxc4 {[%clk 0:02:09.3]} 18. Nxc4
{[%clk 0:02:40.8]} 18... Qf6 {[%clk 0:01:50.6]} 19. Bf3 {[%clk 0:02:38.6]} 19...
g5 {[%clk 0:01:51]} 20. Re1 {[%clk 0:02:32.6]} 20... g4 {[%clk 0:01:50]} 21. Be2
{[%clk 0:02:33.9]} 21... Nd7 {[%clk 0:01:50.6]} 22. Qd2 {[%clk 0:02:33.6]} 22...
h5 {[%clk 0:01:51]} 23. Qf4 {[%clk 0:02:30.4]} 23... Ra8 {[%clk 0:01:27.9]} 24.
Bf1 {[%clk 0:02:28.1]} 24... Nf8 {[%clk 0:01:28.8]} 25. Ne5 {[%clk 0:02:29]}
25... Bxa2 {[%clk 0:01:19.5]} 26. Rc6 {[%clk 0:02:27.8]} 26... Be6 {[%clk
0:01:20.3]} 27. Bc4 {[%clk 0:02:27.1]} 27... a5 {[%clk 0:01:20.2]} 28. h3 {[%clk
0:02:22.5]} 28... gxh3 {[%clk 0:01:11.6]} 29. gxh3 {[%clk 0:02:23.5]} 29... a4
{[%clk 0:01:12.8]} 30. Kh2 {[%clk 0:02:23.8]} 30... a3 {[%clk 0:01:12.5]} 31.
Rg1+ {[%clk 0:02:24.4]} 31... Kh8 {[%clk 0:01:13.8]} 32. Bxe6 {[%clk 0:02:21.3]}
32... Nxe6 {[%clk 0:01:14.2]} 33. Nxf7+ {[%clk 0:02:18.3]} 33... Kh7 {[%clk
0:01:07]} 34. Rxe6 {[%clk 0:02:18.2]} 34... Qxe6 {[%clk 0:01:05.1]} 35. Ng5+
{[%clk 0:02:19]} 1-0

[Event "*** Titled Tuesday 3|2 Blitz"]
[Site "Chess.com"]
[Date "2016.07.05"]
[Round "2"]
[White "jefferyx"]
[Black "Izoria123"]
[Result "0-1"]
[WhiteElo "2575"]
[BlackElo "2599"]
[TimeControl "180+2"]
[EndTime "17:20:19 PDT"]
[Termination "Izoria123 won by resignation"]

1. b4 {[%clk 0:03:01.9]} 1... e5 {[%clk 0:02:57.2]} 2. a3 {[%clk 0:03:02.8]}
2... d5 {[%clk 0:02:57.3]} 3. Bb2 {[%clk 0:03:04.1]} 3... Bd6 {[%clk 0:02:58.4]}
4. e3 {[%clk 0:03:05.6]} 4... Nf6 {[%clk 0:02:59.1]} 5. Nf3 {[%clk 0:03:07.1]}
5... Qe7 {[%clk 0:03:00]} 6. d4 {[%clk 0:03:07.9]} 6... e4 {[%clk 0:03:00.7]} 7.
Nfd2 {[%clk 0:03:09.5]} 7... Ng4 {[%clk 0:02:52]} 8. Qe2 {[%clk 0:03:08.9]} 8...
c6 {[%clk 0:02:48.3]} 9. c4 {[%clk 0:03:09.2]} 9... Nxh2 {[%clk 0:02:43.7]} 10.
Rxh2 {[%clk 0:03:04.9]} 10... Bxh2 {[%clk 0:02:43.7]} 11. cxd5 {[%clk
0:03:06.8]} 11... Bd6 {[%clk 0:02:31.7]} 12. Nc3 {[%clk 0:03:07.2]} 12... f5
{[%clk 0:02:31.9]} 13. Nc4 {[%clk 0:03:01.2]} 13... O-O {[%clk 0:02:27]} 14. Qh5
{[%clk 0:02:57.6]} 14... Nd7 {[%clk 0:02:23.5]} 15. dxc6 {[%clk 0:02:50.1]}
15... bxc6 {[%clk 0:02:15.8]} 16. Na5 {[%clk 0:02:16.3]} 16... Nf6 {[%clk
0:02:14.6]} 17. Bc4+ {[%clk 0:02:15.9]} 17... Be6 {[%clk 0:01:44.9]} 18. Qxf5
{[%clk 0:02:13.3]} 18... Bxc4 {[%clk 0:01:34.2]} 19. Nxc4 {[%clk 0:02:15.2]}
19... Rae8 {[%clk 0:01:27.3]} 20. O-O-O {[%clk 0:02:05.7]} 20... Bc7 {[%clk
0:01:16.5]} 21. Rh1 {[%clk 0:02:05]} 21... g6 {[%clk 0:01:16.7]} 22. Qh3 {[%clk
0:01:28.3]} 22... Qe6 {[%clk 0:01:17.2]} 23. Nd2 {[%clk 0:01:21]} 23... Qxh3
{[%clk 0:01:17]} 24. Rxh3 {[%clk 0:01:22.6]} 24... Ng4 {[%clk 0:01:16.1]} 25.
Ncxe4 {[%clk 0:00:46.1]} 25... Nxf2 {[%clk 0:01:16.8]} 26. Nxf2 {[%clk 0:00:48]}
26... Rxf2 {[%clk 0:01:17]} 0-1

[Event "*** Titled Tuesday 3|2 Blitz"]
[Site "Chess.com"]
[Date "2016.07.05"]
[Round "2"]
[White "Konavets"]
[Black "LonesomeGeorge1"]
[Result "1-0"]
[WhiteElo "2490"]
[BlackElo "2279"]
[TimeControl "180+2"]
[EndTime "17:20:27 PDT"]
[Termination "Konavets won by resignation"]

1. c4 {[%clk 0:03:01.9]} 1... Nf6 {[%clk 0:02:58.9]} 2. g3 {[%clk 0:03:03.3]}
2... g6 {[%clk 0:02:59.2]} 3. Bg2 {[%clk 0:03:04.7]} 3... Bg7 {[%clk 0:03:00.7]}
4. Nf3 {[%clk 0:03:06.2]} 4... O-O {[%clk 0:03:02.1]} 5. O-O {[%clk 0:03:07.9]}
5... d6 {[%clk 0:03:03.3]} 6. Nc3 {[%clk 0:03:09.1]} 6... Nc6 {[%clk 0:03:00.3]}
7. d3 {[%clk 0:03:10.4]} 7... e5 {[%clk 0:03:01.2]} 8. Rb1 {[%clk 0:03:12.3]}
8... a5 {[%clk 0:03:01.6]} 9. a3 {[%clk 0:03:13.1]} 9... Nd4 {[%clk 0:03:02.3]}
10. Nd2 {[%clk 0:03:10.2]} 10... c6 {[%clk 0:02:53.7]} 11. e3 {[%clk 0:03:10.4]}
11... Nf5 {[%clk 0:02:41.8]} 12. b4 {[%clk 0:03:11.1]} 12... axb4 {[%clk
0:02:42.7]} 13. axb4 {[%clk 0:03:12.9]} 13... Be6 {[%clk 0:02:32.3]} 14. Bb2
{[%clk 0:03:09.4]} 14... Re8 {[%clk 0:02:22.3]} 15. b5 {[%clk 0:03:08.7]} 15...
d5 {[%clk 0:02:22.6]} 16. Na4 {[%clk 0:03:07.9]} 16... Nd7 {[%clk 0:01:34.1]}
17. cxd5 {[%clk 0:03:03.8]} 17... cxd5 {[%clk 0:01:34.9]} 18. e4 {[%clk
0:02:45.2]} 18... dxe4 {[%clk 0:01:30.9]} 19. Nxe4 {[%clk 0:02:44.7]} 19... Nd4
{[%clk 0:01:26.2]} 20. Bxd4 {[%clk 0:02:44.1]} 20... exd4 {[%clk 0:01:28.1]} 21.
Nd6 {[%clk 0:02:45.4]} 21... Re7 {[%clk 0:01:17.7]} 22. Nxb7 {[%clk 0:02:42.5]}
22... Qb8 {[%clk 0:01:15]} 23. Nbc5 {[%clk 0:02:42.3]} 23... Ra5 {[%clk
0:01:03]} 24. Nxe6 {[%clk 0:02:38.6]} 24... Rxe6 {[%clk 0:01:04.9]} 25. Bh3
{[%clk 0:02:38.4]} 25... Rd6 {[%clk 0:00:46.5]} 26. Qb3 {[%clk 0:02:34.2]} 26...
h5 {[%clk 0:00:41.6]} 27. Rfe1 {[%clk 0:02:31.4]} 27... Ne5 {[%clk 0:00:36.5]}
28. Bg2 {[%clk 0:02:27.5]} 28... Rf6 {[%clk 0:00:19.9]} 29. b6 {[%clk
0:02:24.6]} 29... Nf3+ {[%clk 0:00:20.4]} 30. Bxf3 {[%clk 0:02:25.5]} 30... Rxf3
{[%clk 0:00:22.3]} 31. b7 {[%clk 0:02:27]} 31... Raf5 {[%clk 0:00:23.3]} 32. Re2
{[%clk 0:02:20.8]} 32... h4 {[%clk 0:00:24.7]} 33. Kg2 {[%clk 0:02:20.1]} 33...
hxg3 {[%clk 0:00:25.1]} 34. hxg3 {[%clk 0:02:20.7]} 34... Be5 {[%clk 0:00:26.6]}
35. Qb5 {[%clk 0:02:18.8]} 35... Bxg3 {[%clk 0:00:25]} 36. Re8+ {[%clk 0:02:18]}
36... Kg7 {[%clk 0:00:22]} 37. Qxf5 {[%clk 0:02:10.2]} 37... gxf5 {[%clk
0:00:19.4]} 38. Rxb8 {[%clk 0:02:10.6]} 38... Rxf2+ {[%clk 0:00:15.7]} 39. Kxg3
{[%clk 0:02:11.8]} 1-0

[Event "*** Titled Tuesday 3|2 Blitz"]
[Site "Chess.com"]
[Date "2016.07.05"]
[Round "2"]
[White "ruifeng"]
[Black "dcremisi"]
[Result "0-1"]
[WhiteElo "2295"]
[BlackElo "2241"]
[TimeControl "180+2"]
[EndTime "17:20:38 PDT"]
[Termination "dcremisi won by resignation"]

1. e4 {[%clk 0:03:01.9]} 1... e6 {[%clk 0:02:57.1]} 2. Qe2 {[%clk 0:02:59.7]}
2... Be7 {[%clk 0:02:54.1]} 3. d3 {[%clk 0:02:54.4]} 3... d5 {[%clk 0:02:54.8]}
4. g3 {[%clk 0:02:55.5]} 4... b6 {[%clk 0:02:55.1]} 5. Bg2 {[%clk 0:02:56.8]}
5... dxe4 {[%clk 0:02:54.3]} 6. Qxe4 {[%clk 0:02:51.4]} 6... c6 {[%clk
0:02:54.9]} 7. Nf3 {[%clk 0:02:50.9]} 7... Nf6 {[%clk 0:02:54.8]} 8. Qe2 {[%clk
0:02:51.6]} 8... Bb7 {[%clk 0:02:55.3]} 9. O-O {[%clk 0:02:50.7]} 9... O-O
{[%clk 0:02:55.6]} 10. d4 {[%clk 0:02:47]} 10... c5 {[%clk 0:02:55.4]} 11. dxc5
{[%clk 0:02:38.4]} 11... Bxc5 {[%clk 0:02:55.1]} 12. Be3 {[%clk 0:02:39.4]}
12... Bxe3 {[%clk 0:02:55.3]} 13. Qxe3 {[%clk 0:02:40.6]} 13... Nd5 {[%clk
0:02:52.9]} 14. Qd2 {[%clk 0:02:36.6]} 14... Nc6 {[%clk 0:02:50.7]} 15. c4
{[%clk 0:02:35.7]} 15... Ndb4 {[%clk 0:02:49.3]} 16. Nc3 {[%clk 0:02:34.5]}
16... Qxd2 {[%clk 0:02:45]} 17. Nxd2 {[%clk 0:02:35.7]} 17... Na5 {[%clk
0:02:43.7]} 18. Bxb7 {[%clk 0:02:34.9]} 18... Nxb7 {[%clk 0:02:44.2]} 19. a3
{[%clk 0:02:33.7]} 19... Nd3 {[%clk 0:02:42.4]} 20. b4 {[%clk 0:02:29.9]} 20...
Rac8 {[%clk 0:02:41]} 21. Rab1 {[%clk 0:02:28.4]} 21... Ne5 {[%clk 0:02:38.7]}
22. c5 {[%clk 0:01:44.1]} 22... bxc5 {[%clk 0:02:37]} 23. b5 {[%clk 0:01:45.3]}
23... Rfd8 {[%clk 0:02:34.7]} 24. Nb3 {[%clk 0:01:34.2]} 24... c4 {[%clk
0:02:33.8]} 25. Na1 {[%clk 0:01:28.1]} 25... Nf3+ {[%clk 0:02:33.4]} 26. Kg2
{[%clk 0:01:29.2]} 26... Nd2 {[%clk 0:02:35.3]} 27. Nc2 {[%clk 0:01:29.1]} 27...
Nxb1 {[%clk 0:02:35.5]} 28. Rxb1 {[%clk 0:01:29.7]} 28... Rd3 {[%clk 0:02:33.5]}
29. Ne4 {[%clk 0:01:26.5]} 29... Nd6 {[%clk 0:02:30.8]} 30. Nxd6 {[%clk
0:01:24.6]} 30... Rxd6 {[%clk 0:02:30.8]} 31. a4 {[%clk 0:01:26.1]} 31... Rd2
{[%clk 0:02:30.2]} 32. Ne3 {[%clk 0:01:27.1]} 32... c3 {[%clk 0:02:31.3]} 33. a5
{[%clk 0:01:28.2]} 33... Rb2 {[%clk 0:02:31.1]} 34. Rd1 {[%clk 0:01:25.5]} 34...
Rxb5 {[%clk 0:02:30.8]} 35. a6 {[%clk 0:01:23.2]} 35... c2 {[%clk 0:02:30.8]}
36. Nxc2 {[%clk 0:01:23.6]} 36... Rd5 {[%clk 0:02:28.8]} 37. Rb1 {[%clk
0:01:20.1]} 37... h6 {[%clk 0:02:26.3]} 38. Ne3 {[%clk 0:01:19.9]} 38... Ra5
{[%clk 0:02:27]} 39. Rb7 {[%clk 0:01:20.2]} 39... Rxa6 {[%clk 0:02:28]} 40. Ng4
{[%clk 0:01:21]} 40... Ra1 {[%clk 0:02:27.5]} 41. Ne5 {[%clk 0:01:22.1]} 41...
f6 {[%clk 0:02:28.2]} 42. Ng6 {[%clk 0:01:21.3]} 42... Rc2 {[%clk 0:02:22.8]}
43. Nf4 {[%clk 0:01:21.9]} 43... Raa2 {[%clk 0:02:22.2]} 44. Nxe6 {[%clk
0:01:12.5]} 44... Rxf2+ {[%clk 0:02:22]} 45. Kh3 {[%clk 0:00:57.5]} 45... h5
{[%clk 0:02:22.2]} 46. g4 {[%clk 0:00:50.4]} 46... Rxh2+ {[%clk 0:02:21.4]} 47.
Kg3 {[%clk 0:00:51.1]} 47... h4+ {[%clk 0:02:21.9]} 48. Kf4 {[%clk 0:00:51.4]}
48... Rhf2+ {[%clk 0:02:21.8]} 49. Ke4 {[%clk 0:00:52.3]} 49... Rae2+ {[%clk
0:02:16.9]} 50. Kd5 {[%clk 0:00:52.9]} 50... Re5+ {[%clk 0:02:17.2]} 51. Kd6
{[%clk 0:00:52.9]} 51... Rd2+ {[%clk 0:02:18.7]} 0-1

[Event "*** Titled Tuesday 3|2 Blitz"]
[Site "Chess.com"]
[Date "2016.07.05"]
[Round "2"]
[White "Superfelix"]
[Black "BCNUM8"]
[Result "1-0"]
[WhiteElo "2337"]
[BlackElo "2125"]
[TimeControl "180+2"]
[EndTime "17:20:46 PDT"]
[Termination "Superfelix won on time"]

1. e4 {[%clk 0:03:01.9]} 1... Nc6 {[%clk 0:03:00.5]} 2. Nc3 {[%clk 0:03:00.6]}
2... d6 {[%clk 0:03:00.4]} 3. Nf3 {[%clk 0:03:00]} 3... Bg4 {[%clk 0:02:59.4]}
4. h3 {[%clk 0:02:59.3]} 4... Bh5 {[%clk 0:02:59.8]} 5. Be2 {[%clk 0:02:57.2]}
5... Nf6 {[%clk 0:03:00.7]} 6. d4 {[%clk 0:02:57.6]} 6... e6 {[%clk 0:03:01.7]}
7. Be3 {[%clk 0:02:56.5]} 7... Be7 {[%clk 0:03:02.6]} 8. d5 {[%clk 0:02:57.2]}
8... exd5 {[%clk 0:02:57.7]} 9. exd5 {[%clk 0:02:58.2]} 9... Nb8 {[%clk
0:02:59.3]} 10. Nd4 {[%clk 0:02:56.5]} 10... Bg6 {[%clk 0:02:59.5]} 11. Bf3
{[%clk 0:02:48.2]} 11... Nbd7 {[%clk 0:02:57.8]} 12. g4 {[%clk 0:02:42.3]} 12...
Nc5 {[%clk 0:02:34.5]} 13. h4 {[%clk 0:02:34.3]} 13... h5 {[%clk 0:02:33.9]} 14.
g5 {[%clk 0:02:33]} 14... Nfe4 {[%clk 0:02:34]} 15. Nxe4 {[%clk 0:02:34.1]}
15... Nxe4 {[%clk 0:02:35.9]} 16. Qe2 {[%clk 0:02:30.8]} 16... Qd7 {[%clk
0:02:28]} 17. O-O-O {[%clk 0:02:25.6]} 17... Qa4 {[%clk 0:02:27.5]} 18. Kb1
{[%clk 0:02:19.4]} 18... O-O-O {[%clk 0:02:25.1]} 19. Rd3 {[%clk 0:02:20]} 19...
Nc5 {[%clk 0:02:23.6]} 20. Ra3 {[%clk 0:02:18.6]} 20... Qb4 {[%clk 0:02:13.1]}
21. Rxa7 {[%clk 0:01:58.2]} 21... Na4 {[%clk 0:02:13.2]} 22. Ra8+ {[%clk
0:01:44.7]} 22... Kd7 {[%clk 0:02:14]} 23. Qb5+ {[%clk 0:01:42.8]} 23... Qxb5
{[%clk 0:02:08.8]} 24. Rxd8+ {[%clk 0:01:43.8]} 24... Kxd8 {[%clk 0:02:07.9]}
25. Nxb5 {[%clk 0:01:45.4]} 25... Nc5 {[%clk 0:02:00]} 26. Bd4 {[%clk
0:01:41.1]} 26... f6 {[%clk 0:01:45.3]} 27. gxf6 {[%clk 0:01:37.9]} 27... gxf6
{[%clk 0:01:47.2]} 28. Re1 {[%clk 0:01:37]} 28... f5 {[%clk 0:01:21.9]} 29. Bxh8
{[%clk 0:01:36]} 1-0

[Event "*** Titled Tuesday 3|2 Blitz"]
[Site "Chess.com"]
[Date "2016.07.05"]
[Round "2"]
[White "matein28"]
[Black "pedromartinez91"]
[Result "1/2-1/2"]
[WhiteElo "2363"]
[BlackElo "2309"]
[TimeControl "180+2"]
[EndTime "17:21:44 PDT"]
[Termination "Game drawn by stalemate"]

1. d4 {[%clk 0:03:01.9]} 1... d5 {[%clk 0:02:59.9]} 2. c4 {[%clk 0:03:02.6]}
2... dxc4 {[%clk 0:02:59.7]} 3. Nc3 {[%clk 0:03:03.2]} 3... a6 {[%clk
0:02:58.3]} 4. a4 {[%clk 0:03:03.6]} 4... Nc6 {[%clk 0:02:58]} 5. Nf3 {[%clk
0:03:02.9]} 5... Bg4 {[%clk 0:02:54.7]} 6. d5 {[%clk 0:02:58.6]} 6... Na5 {[%clk
0:02:54.9]} 7. e4 {[%clk 0:02:57.7]} 7... e6 {[%clk 0:02:54.8]} 8. Be2 {[%clk
0:02:52.3]} 8... Nf6 {[%clk 0:02:41.1]} 9. O-O {[%clk 0:02:47.7]} 9... Bxf3
{[%clk 0:02:36.3]} 10. Bxf3 {[%clk 0:02:47.6]} 10... e5 {[%clk 0:02:37.1]} 11.
Bg5 {[%clk 0:02:46]} 11... h6 {[%clk 0:02:36.2]} 12. Bh4 {[%clk 0:02:46.3]}
12... Bd6 {[%clk 0:02:36.4]} 13. Rc1 {[%clk 0:02:46]} 13... Nb3 {[%clk
0:02:30.8]} 14. Rc2 {[%clk 0:02:38.3]} 14... Nd4 {[%clk 0:02:31.1]} 15. Rc1
{[%clk 0:02:37.2]} 15... b5 {[%clk 0:02:30.7]} 16. Be2 {[%clk 0:02:33.2]} 16...
g5 {[%clk 0:02:26.8]} 17. Bg3 {[%clk 0:02:34.2]} 17... Qe7 {[%clk 0:02:17.3]}
18. f3 {[%clk 0:02:29.5]} 18... Bc5 {[%clk 0:02:16.3]} 19. Bf2 {[%clk
0:02:30.5]} 19... Nb3 {[%clk 0:02:16]} 20. Rc2 {[%clk 0:02:18.1]} 20... Bxf2+
{[%clk 0:02:15.6]} 21. Rxf2 {[%clk 0:02:19.2]} 21... Qc5 {[%clk 0:02:16.6]} 22.
Nb1 {[%clk 0:02:11.9]} 22... Qd4 {[%clk 0:02:09.1]} 23. Qe1 {[%clk 0:02:08.3]}
23... Nd7 {[%clk 0:02:08.9]} 24. Nd2 {[%clk 0:02:03.5]} 24... Ndc5 {[%clk
0:02:08.8]} 25. Nxb3 {[%clk 0:02:03.6]} 25... Nxb3 {[%clk 0:02:09.1]} 26. Kh1
{[%clk 0:02:01]} 26... O-O {[%clk 0:02:08.7]} 27. Bd1 {[%clk 0:02:01.1]} 27...
bxa4 {[%clk 0:02:02.9]} 28. Rc3 {[%clk 0:02:02.2]} 28... Rab8 {[%clk 0:02:02]}
29. Rfc2 {[%clk 0:02:03.4]} 29... Rb4 {[%clk 0:02:02.7]} 30. Qf1 {[%clk
0:01:59.3]} 30... Rfb8 {[%clk 0:01:49]} 31. Rxc4 {[%clk 0:01:55.1]} 31... Rxc4
{[%clk 0:01:49.6]} 32. Rxc4 {[%clk 0:01:56]} 32... Qxb2 {[%clk 0:01:49.1]} 33.
Rxa4 {[%clk 0:01:55.1]} 33... Nd4 {[%clk 0:01:43.9]} 34. f4 {[%clk 0:01:38.6]}
34... gxf4 {[%clk 0:01:40.8]} 35. Bh5 {[%clk 0:01:39.7]} 35... Qc2 {[%clk
0:01:38.8]} 36. Ra1 {[%clk 0:01:35.8]} 36... Rb2 {[%clk 0:01:39.2]} 37. h3
{[%clk 0:01:21.3]} 37... Qxe4 {[%clk 0:01:32.6]} 38. Bf3 {[%clk 0:01:01.1]}
38... Nxf3 {[%clk 0:01:23.1]} 39. gxf3 {[%clk 0:01:03]} 39... Qc2 {[%clk
0:01:21.8]} 40. Qg1+ {[%clk 0:01:03]} 40... Kh7 {[%clk 0:01:21.6]} 41. Rc1
{[%clk 0:01:02.1]} 41... Qe2 {[%clk 0:01:20.1]} 42. Rf1 {[%clk 0:00:57.3]} 42...
a5 {[%clk 0:01:20.7]} 43. d6 {[%clk 0:00:52.7]} 43... cxd6 {[%clk 0:01:21.1]}
44. h4 {[%clk 0:00:54.4]} 44... a4 {[%clk 0:01:21.9]} 45. h5 {[%clk 0:00:55.8]}
45... a3 {[%clk 0:01:22.9]} 46. Rf2 {[%clk 0:00:56.8]} 46... Qxf2 {[%clk
0:01:22.8]} 47. Qg7+ {[%clk 0:00:57.4]} 47... Kxg7 {[%clk 0:00:51.1]} 1/2-1/2

[Event "*** Titled Tuesday 3|2 Blitz"]
[Site "Chess.com"]
[Date "2016.07.05"]
[Round "2"]
[White "Hikaru"]
[Black "Boryboy"]
[Result "1-0"]
[WhiteElo "3001"]
[BlackElo "2499"]
[TimeControl "180+2"]
[EndTime "17:22:02 PDT"]
[Termination "Hikaru won by resignation"]

1. d4 {[%clk 0:03:01.9]} 1... e6 {[%clk 0:03:00.7]} 2. c4 {[%clk 0:03:02.8]}
2... d5 {[%clk 0:03:01.6]} 3. Nc3 {[%clk 0:03:01.4]} 3... Nf6 {[%clk 0:03:01.3]}
4. Nf3 {[%clk 0:02:59.7]} 4... Nbd7 {[%clk 0:02:59.1]} 5. Bf4 {[%clk 0:02:59]}
5... dxc4 {[%clk 0:02:52.3]} 6. e3 {[%clk 0:02:59.5]} 6... b5 {[%clk 0:02:50.5]}
7. Nxb5 {[%clk 0:03:00.5]} 7... Nd5 {[%clk 0:02:50.8]} 8. Nc3 {[%clk 0:02:58.9]}
8... Bb4 {[%clk 0:02:48.6]} 9. a3 {[%clk 0:02:59.9]} 9... Ba5 {[%clk 0:02:37.5]}
10. Qa4 {[%clk 0:02:43.5]} 10... Bxc3+ {[%clk 0:02:29.9]} 11. bxc3 {[%clk
0:02:44.5]} 11... Nxf4 {[%clk 0:02:31.6]} 12. exf4 {[%clk 0:02:45.6]} 12... O-O
{[%clk 0:02:28.9]} 13. Qxc4 {[%clk 0:02:46.7]} 13... Bb7 {[%clk 0:02:24.5]} 14.
Be2 {[%clk 0:02:47.6]} 14... c5 {[%clk 0:02:23.5]} 15. O-O {[%clk 0:02:47.8]}
15... cxd4 {[%clk 0:02:22.1]} 16. Qxd4 {[%clk 0:02:48.1]} 16... Nb6 {[%clk
0:02:21.1]} 17. Rfc1 {[%clk 0:02:40.2]} 17... Qxd4 {[%clk 0:02:12.7]} 18. Nxd4
{[%clk 0:02:40.7]} 18... Rfd8 {[%clk 0:02:06.7]} 19. g3 {[%clk 0:02:39.5]} 19...
Rac8 {[%clk 0:01:55.6]} 20. Bf1 {[%clk 0:02:22.9]} 20... Bd5 {[%clk 0:01:37.1]}
21. a4 {[%clk 0:02:20.7]} 21... Rd7 {[%clk 0:01:29.4]} 22. Ba6 {[%clk
0:02:19.6]} 22... Rcd8 {[%clk 0:01:25.8]} 23. a5 {[%clk 0:02:08.5]} 23... Nc4
{[%clk 0:01:19.7]} 24. Bxc4 {[%clk 0:02:08.5]} 24... Bxc4 {[%clk 0:01:20.8]} 25.
Nc6 {[%clk 0:02:10.2]} 25... Rc8 {[%clk 0:01:18.6]} 26. Ne5 {[%clk 0:02:05.6]}
26... Rdc7 {[%clk 0:01:19.4]} 27. Rab1 {[%clk 0:02:02.2]} 27... Bd5 {[%clk
0:01:19.5]} 28. c4 {[%clk 0:02:03]} 28... Be4 {[%clk 0:01:14.2]} 29. Rb4 {[%clk
0:02:00.9]} 29... f6 {[%clk 0:01:15.6]} 30. Ng4 {[%clk 0:02:01.8]} 30... Rc5
{[%clk 0:01:12.7]} 31. Ra4 {[%clk 0:01:59.5]} 31... Bc6 {[%clk 0:01:04.1]} 32.
Ra3 {[%clk 0:02:00.4]} 32... Be4 {[%clk 0:01:03.9]} 33. Ne3 {[%clk 0:02:01.3]}
33... h5 {[%clk 0:01:02.3]} 34. Rd1 {[%clk 0:01:53.5]} 34... h4 {[%clk
0:00:57.8]} 35. Kf1 {[%clk 0:01:49.4]} 35... hxg3 {[%clk 0:00:50.8]} 36. fxg3
{[%clk 0:01:50.1]} 36... e5 {[%clk 0:00:48.6]} 37. Rd7 {[%clk 0:01:38.1]} 37...
exf4 {[%clk 0:00:48.2]} 38. gxf4 {[%clk 0:01:40]} 38... R8c7 {[%clk 0:00:47.4]}
39. Rxc7 {[%clk 0:01:40.6]} 39... Rxc7 {[%clk 0:00:49.3]} 40. Ke2 {[%clk
0:01:42.2]} 40... Rc5 {[%clk 0:00:49.5]} 41. h3 {[%clk 0:01:34.3]} 41... Kf7
{[%clk 0:00:44.8]} 42. Kd2 {[%clk 0:01:35.1]} 42... Bc6 {[%clk 0:00:37]} 43. a6
{[%clk 0:01:33.6]} 43... g5 {[%clk 0:00:34.6]} 44. f5 {[%clk 0:01:30.6]} 44...
Be4 {[%clk 0:00:32.1]} 45. Rb3 {[%clk 0:01:31.2]} 45... Bxf5 {[%clk 0:00:21.4]}
46. Rb7+ {[%clk 0:01:32]} 46... Kg6 {[%clk 0:00:22.9]} 47. Nxf5 {[%clk
0:01:30.4]} 47... Kxf5 {[%clk 0:00:21.6]} 48. Kc3 {[%clk 0:01:31.7]} 48... Ra5
{[%clk 0:00:14.4]} 49. Rb5+ {[%clk 0:01:30.8]} 49... Rxb5 {[%clk 0:00:14.2]} 50.
cxb5 {[%clk 0:01:32.7]} 50... Ke6 {[%clk 0:00:15.5]} 51. b6 {[%clk 0:01:33.8]}
1-0